Workbook

Sheet 3.1 Input
B2: Εφαρμογή 3.1: Σχεδιασμός συστήματος αυτόνομης οικίας
B4: Input
B6: n_stc | C6: 0.14
B7: PR | C7: 0.8
B8: P_panel | C8: 160 | D8: W
B9: V_syst | C9: 24 | D9: V
B10: V_cel | C10: 2 | D10: V
B11: Cap_cel | C11: 1000 | D11: A*hr
B12: DoD | C12: 0.5
B13: G_stc | C13: 1000 | D13: W/m^2
B14: A_panel | C14: =C8/(C13*C6) -> 1.142857143 | D14: m^2
B17: Περίοδος | C17: Ώρα | D17: Σύνολο ενεργειακών αναγκών (Wh) | E17: Μέση ηλιακή ακτινοβολία (W *hr/m^2)
B18: 1 | C18: 0-1 | D18: 550 | E18: 0
B19: 2 | C19: 1 - 2 | D19: 550 | E19: 0
B20: 3 | C20: 2 - 3 | D20: 300 | E20: 0
B21: 4 | C21: 3 - 4 | D21: 300 | E21: 0
B22: 5 | C22: 4 - 5 | D22: 300 | E22: 0
B23: 6 | C23: 5 - 6 | D23: 300 | E23: 0
B24: 7 | C24: 6 - 7 | D24: 420 | E24: 0
B25: 8 | C25: 7 - 8 | D25: 420 | E25: 10.3
B26: 9 | C26: 8 - 9 | D26: 775 | E26: 138.5
B27: 10 | C27: 9 - 10 | D27: 500 | E27: 352.9
B28: 11 | C28: 10 - 11 | D28: 500 | E28: 545.5
B29: 12 | C29: 11 - 12 | D29: 500 | E29: 690.5
B30: 13 | C30: 12 - 13 | D30: 2500 | E30: 782.4
B31: 14 | C31: 13 - 14 | D31: 500 | E31: 801.8
B32: 15 | C32: 14 - 15 | D32: 500 | E32: 766.3
B33: 16 | C33: 15 - 16 | D33: 960 | E33: 660.5
B34: 17 | C34: 16 - 17 | D34: 1385 | E34: 439.9
B35: 18 | C35: 17 - 18 | D35: 2760 | E35: 248.9
B36: 19 | C36: 18 - 19 | D36: 1710 | E36: 138.4
B37: 20 | C37: 19 - 20 | D37: 3400 | E37: 12.4
B38: 21 | C38: 20 - 21 | D38: 2650 | E38: 0
B39: 22 | C39: 21 - 22 | D39: 1900 | E39: 0
B40: 23 | C40: 22 - 23 | D40: 1900 | E40: 0
B41: 24 | C41: 23 - 24 | D41: 1360 | E41: 0

Sheet 3.1 Output
B2: Εφαρμογή 3.1: Σχεδιασμός συστήματος αυτόνομης οικίας
B4: Output
B6: E_total | C6: =SUM('3.1 Input'!$D$18:$D$41)*10^-3 -> 26.94 | D6: kWh
B7: E_pv | C7: =$C$6 -> 26.94 | D7: kWh
B8: H_total | C8: =SUM('3.1 Input'!$E$18:$E$41)*10^-3 -> 5.5883 | D8: kWh/m^2
B9: A_Array | C9: =$C$6/('3.1 Input'!$C$6*'3.1 Input'!$C$7*'3.1 Output'!$C$8) -> 43.04273469 | D9: m^2
B10: P'_array_stc | C10: =$C$9*'3.1 Input'!$C$13*'3.1 Input'!$C$6*10^-3 -> 6.025982857 | D10: kW
B11: N_array | C11: =ROUNDUP($C$10/('3.1 Input'!$C$8*10^-3),0) -> 38
B12: P'_inst | C12: =$C$11*'3.1 Input'!$C$8*10^-3 -> 6.08 | D12: kW
B13: E_BTCapD | C13: =SUM($F$21:$F$44) -> 17.1685872 | D13: kWh
B14: E_BTCap | C14: =$C$13/'3.1 Input'!$C$12 -> 34.3371744 | D14: kWh
B15: E_Bt.min | C15: ='3.1 Input'!$C$9*'3.1 Input'!$C$11*10^-3 -> 24 | D15: kWh
B16: N_BT | C16: =ROUNDUP($C$14/$C$15,0) -> 2
B17: E_BT.inst | C17: =$C$16*$C$15 -> 48 | D17: kWh
B20: Ώρα | C20: Demand (kWh) | D20: E_prod (kWh) | E20: E_dlv (kWh) | F20: E_xs (kWh) | G20: E_f (kWh)
B21: 0-1 | C21: ='3.1 Input'!D18*10^-3 -> 0.55 | D21: ='3.1 Output'!$C$11*'3.1 Input'!$E18*'3.1 Input'!$C$14*'3.1 Input'!$C$7*'3.1 Input'!$C$6*10^-3 -> 0 | E21: =IF($C21<$D21,$C21,$D21) -> 0 | F21: =$D21-$E21 -> 0 | G21: =$C21-$E21 -> 0.55
B22: 1 - 2 | C22: ='3.1 Input'!D19*10^-3 -> 0.55 | D22: ='3.1 Output'!$C$11*'3.1 Input'!$E19*'3.1 Input'!$C$14*'3.1 Input'!$C$7*'3.1 Input'!$C$6*10^-3 -> 0 | E22: =IF($C22<$D22,$C22,$D22) -> 0 | F22: =$D22-$E22 -> 0 | G22: =$C22-$E22 -> 0.55
B23: 2 - 3 | C23: ='3.1 Input'!D20*10^-3 -> 0.3 | D23: ='3.1 Output'!$C$11*'3.1 Input'!$E20*'3.1 Input'!$C$14*'3.1 Input'!$C$7*'3.1 Input'!$C$6*10^-3 -> 0 | E23: 0 | F23: 0 | G23: 0.3
B24: 3 - 4 | C24: ='3.1 Input'!D21*10^-3 -> 0.3 | D24: ='3.1 Output'!$C$11*'3.1 Input'!$E21*'3.1 Input'!$C$14*'3.1 Input'!$C$7*'3.1 Input'!$C$6*10^-3 -> 0 | E24: 0 | F24: 0 | G24: 0.3
B25: 4 - 5 | C25: ='3.1 Input'!D22*10^-3 -> 0.3 | D25: ='3.1 Output'!$C$11*'3.1 Input'!$E22*'3.1 Input'!$C$14*'3.1 Input'!$C$7*'3.1 Input'!$C$6*10^-3 -> 0 | E25: 0 | F25: 0 | G25: 0.3
B26: 5 - 6 | C26: ='3.1 Input'!D23*10^-3 -> 0.3 | D26: ='3.1 Output'!$C$11*'3.1 Input'!$E23*'3.1 Input'!$C$14*'3.1 Input'!$C$7*'3.1 Input'!$C$6*10^-3 -> 0 | E26: 0 | F26: 0 | G26: 0.3
B27: 6 - 7 | C27: ='3.1 Input'!D24*10^-3 -> 0.42 | D27: ='3.1 Output'!$C$11*'3.1 Input'!$E24*'3.1 Input'!$C$14*'3.1 Input'!$C$7*'3.1 Input'!$C$6*10^-3 -> 0 | E27: 0 | F27: 0 | G27: 0.42
B28: 7 - 8 | C28: ='3.1 Input'!D25*10^-3 -> 0.42 | D28: ='3.1 Output'!$C$11*'3.1 Input'!$E25*'3.1 Input'!$C$14*'3.1 Input'!$C$7*'3.1 Input'!$C$6*10^-3 -> 0.0500992 | E28: =IF($C28<$D28,$C28,$D28) -> 0.0500992 | F28: 0 | G28: 0.3699008
B29: 8 - 9 | C29: ='3.1 Input'!D26*10^-3 -> 0.775 | D29: ='3.1 Output'!$C$11*'3.1 Input'!$E26*'3.1 Input'!$C$14*'3.1 Input'!$C$7*'3.1 Input'!$C$6*10^-3 -> 0.673664 | E29: 0.673664 | F29: 0 | G29: 0.101336
B30: 9 - 10 | C30: ='3.1 Input'!D27*10^-3 -> 0.5 | D30: ='3.1 Output'!$C$11*'3.1 Input'!$E27*'3.1 Input'!$C$14*'3.1 Input'!$C$7*'3.1 Input'!$C$6*10^-3 -> 1.7165056 | E30: 0.5 | F30: 1.2165056 | G30: 0
B31: 10 - 11 | C31: ='3.1 Input'!D28*10^-3 -> 0.5 | D31: ='3.1 Output'!$C$11*'3.1 Input'!$E28*'3.1 Input'!$C$14*'3.1 Input'!$C$7*'3.1 Input'!$C$6*10^-3 -> 2.653312 | E31: 0.5 | F31: 2.153312 | G31: 0
B32: 11 - 12 | C32: ='3.1 Input'!D29*10^-3 -> 0.5 | D32: ='3.1 Output'!$C$11*'3.1 Input'!$E29*'3.1 Input'!$C$14*'3.1 Input'!$C$7*'3.1 Input'!$C$6*10^-3 -> 3.358592 | E32: 0.5 | F32: 2.858592 | G32: 0
B33: 12 - 13 | C33: ='3.1 Input'!D30*10^-3 -> 2.5 | D33: ='3.1 Output'!$C$11*'3.1 Input'!$E30*'3.1 Input'!$C$14*'3.1 Input'!$C$7*'3.1 Input'!$C$6*10^-3 -> 3.8055936 | E33: 2.5 | F33: =$D33-$E33 -> 1.3055936 | G33: 0
B34: 13 - 14 | C34: ='3.1 Input'!D31*10^-3 -> 0.5 | D34: ='3.1 Output'!$C$11*'3.1 Input'!$E31*'3.1 Input'!$C$14*'3.1 Input'!$C$7*'3.1 Input'!$C$6*10^-3 -> 3.8999552 | E34: 0.5 | F34: 3.3999552 | G34: 0
B35: 14 - 15 | C35: ='3.1 Input'!D32*10^-3 -> 0.5 | D35: ='3.1 Output'!$C$11*'3.1 Input'!$E32*'3.1 Input'!$C$14*'3.1 Input'!$C$7*'3.1 Input'!$C$6*10^-3 -> 3.7272832 | E35: 0.5 | F35: 3.2272832 | G35: 0
B36: 15 - 16 | C36: ='3.1 Input'!D33*10^-3 -> 0.96 | D36: ='3.1 Output'!$C$11*'3.1 Input'!$E33*'3.1 Input'!$C$14*'3.1 Input'!$C$7*'3.1 Input'!$C$6*10^-3 -> 3.212672 | E36: 0.96 | F36: 2.252672 | G36: 0
B37: 16 - 17 | C37: ='3.1 Input'!D34*10^-3 -> 1.385 | D37: ='3.1 Output'!$C$11*'3.1 Input'!$E34*'3.1 Input'!$C$14*'3.1 Input'!$C$7*'3.1 Input'!$C$6*10^-3 -> 2.1396736 | E37: 1.385 | F37: 0.7546736 | G37: 0
B38: 17 - 18 | C38: ='3.1 Input'!D35*10^-3 -> 2.76 | D38: ='3.1 Output'!$C$11*'3.1 Input'!$E35*'3.1 Input'!$C$14*'3.1 Input'!$C$7*'3.1 Input'!$C$6*10^-3 -> 1.2106496 | E38: 1.2106496 | F38: 0 | G38: =$C38-$E38 -> 1.5493504
B39: 18 - 19 | C39: ='3.1 Input'!D36*10^-3 -> 1.71 | D39: ='3.1 Output'!$C$11*'3.1 Input'!$E36*'3.1 Input'!$C$14*'3.1 Input'!$C$7*'3.1 Input'!$C$6*10^-3 -> 0.6731776 | E39: 0.6731776 | F39: 0 | G39: 1.0368224
B40: 19 - 20 | C40: ='3.1 Input'!D37*10^-3 -> 3.4 | D40: ='3.1 Output'!$C$11*'3.1 Input'!$E37*'3.1 Input'!$C$14*'3.1 Input'!$C$7*'3.1 Input'!$C$6*10^-3 -> 0.0603136 | E40: 0.0603136 | F40: 0 | G40: 3.3396864
B41: 20 - 21 | C41: ='3.1 Input'!D38*10^-3 -> 2.65 | D41: ='3.1 Output'!$C$11*'3.1 Input'!$E38*'3.1 Input'!$C$14*'3.1 Input'!$C$7*'3.1 Input'!$C$6*10^-3 -> 0 | E41: 0 | F41: 0 | G41: 2.65
B42: 21 - 22 | C42: ='3.1 Input'!D39*10^-3 -> 1.9 | D42: ='3.1 Output'!$C$11*'3.1 Input'!$E39*'3.1 Input'!$C$14*'3.1 Input'!$C$7*'3.1 Input'!$C$6*10^-3 -> 0 | E42: 0 | F42: 0 | G42: 1.9
B43: 22 - 23 | C43: ='3.1 Input'!D40*10^-3 -> 1.9 | D43: ='3.1 Output'!$C$11*'3.1 Input'!$E40*'3.1 Input'!$C$14*'3.1 Input'!$C$7*'3.1 Input'!$C$6*10^-3 -> 0 | E43: 0 | F43: 0 | G43: 1.9
B44: 23 - 24 | C44: ='3.1 Input'!D41*10^-3 -> 1.36 | D44: ='3.1 Output'!$C$11*'3.1 Input'!$E41*'3.1 Input'!$C$14*'3.1 Input'!$C$7*'3.1 Input'!$C$6*10^-3 -> 0 | E44: 0 | F44: 0 | G44: 1.36

Sheet 3.2 Input
B2: Εφαρμογή 3.2: Ανάλυση συστήματος αυτόνομης οικίας για θερινή και χειμερινή ημέρα
B4: Input
B6: PR_Sum | C6: 0.78
B7: PR_Win | C7: 0.82
B8: SOC_0 | C8: 0.55
B9: n_stc | C9: 0.14
B10: E_Btinst | C10: 48 | D10: kWh
B11: DoD | C11: 0.5
B12: A_panel | C12: 1.143 | D12: m^2
B13: N_array | C13: 38
B16: Περίοδος | C16: Ώρα | D16: Κατανάλωση Καλοκαιρινής Ημέρας (Wh) | E16: Κατανάλωση Χειμερινής Ημέρας (Wh) | F16: Ηλιακή Ακτινοβολία Καλοκαιρνής Ημέρας (Wh/m^2) | G16: Ηλιακή Ακτινοβολία Χειμερινής Ημέρας (Wh/m^2)
B17: 1 | C17: 0-1 | D17: 600 | E17: 500 | F17: 0 | G17: 0
B18: 2 | C18: 1 - 2 | D18: 600 | E18: 500 | F18: 0 | G18: 0
B19: 3 | C19: 2 - 3 | D19: 600 | E19: 250 | F19: 0 | G19: 0
B20: 4 | C20: 3 - 4 | D20: 350 | E20: 250 | F20: 0 | G20: 0
B21: 5 | C21: 4 - 5 | D21: 350 | E21: 250 | F21: 0 | G21: 0
B22: 6 | C22: 5 - 6 | D22: 350 | E22: 250 | F22: 1.5 | G22: 0
B23: 7 | C23: 6 - 7 | D23: 350 | E23: 370 | F23: 93.5 | G23: 0
B24: 8 | C24: 7 - 8 | D24: 470 | E24: 370 | F24: 299 | G24: 17.9
B25: 9 | C25: 8 - 9 | D25: 575 | E25: 725 | F25: 515.5 | G25: 155.9
B26: 10 | C26: 9 - 10 | D26: 550 | E26: 450 | F26: 700.1 | G26: 319.6
B27: 11 | C27: 10 - 11 | D27: 550 | E27: 450 | F27: 843.8 | G27: 453
B28: 12 | C28: 11 - 12 | D28: 1675 | E28: 450 | F28: 932 | G28: 536.1
B29: 13 | C29: 12 - 13 | D29: 3675 | E29: 2450 | F29: 936.4 | G29: 566.7
B30: 14 | C30: 13 - 14 | D30: 2800 | E30: 450 | F30: 889.4 | G30: 523.7
B31: 15 | C31: 14 - 15 | D31: 2800 | E31: 450 | F31: 781.6 | G31: 462.9
B32: 16 | C32: 15 - 16 | D32: 3010 | E32: 910 | F32: 616.3 | G32: 306.8
B33: 17 | C33: 16 - 17 | D33: 3685 | E33: 1335 | F33: 419.6 | G33: 129.9
B34: 18 | C34: 17 - 18 | D34: 5060 | E34: 2710 | F34: 214.4 | G34: 13.5
B35: 19 | C35: 18 - 19 | D35: 4010 | E35: 2600 | F35: 39.5 | G35: 0
B36: 20 | C36: 19 - 20 | D36: 4760 | E36: 3350 | F36: 0 | G36: 0
B37: 21 | C37: 20 - 21 | D37: 3285 | E37: 2600 | F37: 0 | G37: 0
B38: 22 | C38: 21 - 22 | D38: 1950 | E38: 1850 | F38: 0 | G38: 0
B39: 23 | C39: 22 - 23 | D39: 1950 | E39: 1850 | F39: 0 | G39: 0
B40: 24 | C40: 23 - 24 | D40: 2535 | E40: 1310 | F40: 0 | G40: 0

Sheet 3.2 Output
B2: Εφαρμογή 3.2: Ανάλυση συστήματος αυτόνομης οικίας για θερινή και χειμερινή ημέρα
B4: Output
B6: SOC_max | C6: 1
B7: SOC_min | C7: ='3.2 Input'!$C$11 -> 0.5
B8: E_BT.max | C8: =($C$6-$C$7)*'3.2 Input'!$C$10 -> 24 | D8: kWh
B9: E_BT.min | C9: =($C$7-'3.2 Input'!$C$11)*'3.2 Input'!$C$10 -> 0 | D9: kWh
B12: Περίοδος | C12: Ώρα | D12: E_prod.summer (kWh) | E12: E_prod.winter (kWh) | F12: E_dlv.summer (kWh) | G12: E_dlv.winter (kWh) | H12: E_xs.summer (kWh) | I12: E_xs.winter (kWh) | J12: E_f.summer (kWh) | K12: E_f.winter (kWh)
B13: 1 | C13: 0-1 | D13: ='3.2 Input'!$C$12*'3.2 Input'!$C$13*'3.2 Input'!$C$9*'3.2 Input'!$C$6*'3.2 Input'!$F17*10^-3 -> 0 | E13: ='3.2 Input'!$C$12*'3.2 Input'!$C$13*'3.2 Input'!$C$9*'3.2 Input'!$C$7*'3.2 Input'!$G17*10^-3 -> 0 | F13: =IF('3.2 Input'!$D17*10^-3<'3.2 Output'!$D13,'3.2 Input'!$D17*10^-3,'3.2 Output'!$D13) -> 0 | G13: =IF('3.2 Input'!$E17*10^-3<'3.2 Output'!$E13,'3.2 Input'!$E17*10^-3,'3.2 Output'!$E13) -> 0 | H13: =$D13-$F13 -> 0 | I13: =$E13-$G13 -> 0 | J13: ='3.2 Input'!$D17*10^-3-'3.2 Output'!$F13 -> 0.6 | K13: ='3.2 Input'!$E17*10^-3-'3.2 Output'!$G13 -> 0.5
B14: 2 | C14: 1 - 2 | D14: ='3.2 Input'!$C$12*'3.2 Input'!$C$13*'3.2 Input'!$C$9*'3.2 Input'!$C$6*'3.2 Input'!$F18*10^-3 -> 0 | E14: ='3.2 Input'!$C$12*'3.2 Input'!$C$13*'3.2 Input'!$C$9*'3.2 Input'!$C$7*'3.2 Input'!$G18*10^-3 -> 0 | F14: =IF('3.2 Input'!$D18*10^-3<'3.2 Output'!$D14,'3.2 Input'!$D18*10^-3,'3.2 Output'!$D14) -> 0 | G14: =IF('3.2 Input'!$E18*10^-3<'3.2 Output'!$E14,'3.2 Input'!$E18*10^-3,'3.2 Output'!$E14) -> 0 | H14: 0 | I14: 0 | J14: ='3.2 Input'!$D18*10^-3-'3.2 Output'!$F14 -> 0.6 | K14: ='3.2 Input'!$E18*10^-3-'3.2 Output'!$G14 -> 0.5
B15: 3 | C15: 2 - 3 | D15: ='3.2 Input'!$C$12*'3.2 Input'!$C$13*'3.2 Input'!$C$9*'3.2 Input'!$C$6*'3.2 Input'!$F19*10^-3 -> 0 | E15: ='3.2 Input'!$C$12*'3.2 Input'!$C$13*'3.2 Input'!$C$9*'3.2 Input'!$C$7*'3.2 Input'!$G19*10^-3 -> 0 | F15: =IF('3.2 Input'!$D19*10^-3<'3.2 Output'!$D15,'3.2 Input'!$D19*10^-3,'3.2 Output'!$D15) -> 0 | G15: =IF('3.2 Input'!$E19*10^-3<'3.2 Output'!$E15,'3.2 Input'!$E19*10^-3,'3.2 Output'!$E15) -> 0 | H15: 0 | I15: 0 | J15: ='3.2 Input'!$D19*10^-3-'3.2 Output'!$F15 -> 0.6 | K15: ='3.2 Input'!$E19*10^-3-'3.2 Output'!$G15 -> 0.25
B16: 4 | C16: 3 - 4 | D16: ='3.2 Input'!$C$12*'3.2 Input'!$C$13*'3.2 Input'!$C$9*'3.2 Input'!$C$6*'3.2 Input'!$F20*10^-3 -> 0 | E16: ='3.2 Input'!$C$12*'3.2 Input'!$C$13*'3.2 Input'!$C$9*'3.2 Input'!$C$7*'3.2 Input'!$G20*10^-3 -> 0 | F16: =IF('3.2 Input'!$D20*10^-3<'3.2 Output'!$D16,'3.2 Input'!$D20*10^-3,'3.2 Output'!$D16) -> 0 | G16: =IF('3.2 Input'!$E20*10^-3<'3.2 Output'!$E16,'3.2 Input'!$E20*10^-3,'3.2 Output'!$E16) -> 0 | H16: 0 | I16: 0 | J16: ='3.2 Input'!$D20*10^-3-'3.2 Output'!$F16 -> 0.35 | K16: ='3.2 Input'!$E20*10^-3-'3.2 Output'!$G16 -> 0.25
B17: 5 | C17: 4 - 5 | D17: ='3.2 Input'!$C$12*'3.2 Input'!$C$13*'3.2 Input'!$C$9*'3.2 Input'!$C$6*'3.2 Input'!$F21*10^-3 -> 0 | E17: ='3.2 Input'!$C$12*'3.2 Input'!$C$13*'3.2 Input'!$C$9*'3.2 Input'!$C$7*'3.2 Input'!$G21*10^-3 -> 0 | F17: =IF('3.2 Input'!$D21*10^-3<'3.2 Output'!$D17,'3.2 Input'!$D21*10^-3,'3.2 Output'!$D17) -> 0 | G17: =IF('3.2 Input'!$E21*10^-3<'3.2 Output'!$E17,'3.2 Input'!$E21*10^-3,'3.2 Output'!$E17) -> 0 | H17: 0 | I17: 0 | J17: ='3.2 Input'!$D21*10^-3-'3.2 Output'!$F17 -> 0.35 | K17: ='3.2 Input'!$E21*10^-3-'3.2 Output'!$G17 -> 0.25
B18: 6 | C18: 5 - 6 | D18: ='3.2 Input'!$C$12*'3.2 Input'!$C$13*'3.2 Input'!$C$9*'3.2 Input'!$C$6*'3.2 Input'!$F22*10^-3 -> 0.0071144892 | E18: ='3.2 Input'!$C$12*'3.2 Input'!$C$13*'3.2 Input'!$C$9*'3.2 Input'!$C$7*'3.2 Input'!$G22*10^-3 -> 0 | F18: =IF('3.2 Input'!$D22*10^-3<'3.2 Output'!$D18,'3.2 Input'!$D22*10^-3,'3.2 Output'!$D18) -> 0.0071144892 | G18: =IF('3.2 Input'!$E22*10^-3<'3.2 Output'!$E18,'3.2 Input'!$E22*10^-3,'3.2 Output'!$E18) -> 0 | H18: 0 | I18: 0 | J18: ='3.2 Input'!$D22*10^-3-'3.2 Output'!$F18 -> 0.3428855108 | K18: ='3.2 Input'!$E22*10^-3-'3.2 Output'!$G18 -> 0.25
B19: 7 | C19: 6 - 7 | D19: ='3.2 Input'!$C$12*'3.2 Input'!$C$13*'3.2 Input'!$C$9*'3.2 Input'!$C$6*'3.2 Input'!$F23*10^-3 -> 0.4434698268 | E19: ='3.2 Input'!$C$12*'3.2 Input'!$C$13*'3.2 Input'!$C$9*'3.2 Input'!$C$7*'3.2 Input'!$G23*10^-3 -> 0 | F19: =IF('3.2 Input'!$D23*10^-3<'3.2 Output'!$D19,'3.2 Input'!$D23*10^-3,'3.2 Output'!$D19) -> 0.35 | G19: =IF('3.2 Input'!$E23*10^-3<'3.2 Output'!$E19,'3.2 Input'!$E23*10^-3,'3.2 Output'!$E19) -> 0 | H19: 0.0934698268 | I19: 0 | J19: ='3.2 Input'!$D23*10^-3-'3.2 Output'!$F19 -> 0 | K19: ='3.2 Input'!$E23*10^-3-'3.2 Output'!$G19 -> 0.37
B20: 8 | C20: 7 - 8 | D20: ='3.2 Input'!$C$12*'3.2 Input'!$C$13*'3.2 Input'!$C$9*'3.2 Input'!$C$6*'3.2 Input'!$F24*10^-3 -> 1.418154847 | E20: ='3.2 Input'!$C$12*'3.2 Input'!$C$13*'3.2 Input'!$C$9*'3.2 Input'!$C$7*'3.2 Input'!$G24*10^-3 -> 0.08925339528 | F20: =IF('3.2 Input'!$D24*10^-3<'3.2 Output'!$D20,'3.2 Input'!$D24*10^-3,'3.2 Output'!$D20) -> 0.47 | G20: =IF('3.2 Input'!$E24*10^-3<'3.2 Output'!$E20,'3.2 Input'!$E24*10^-3,'3.2 Output'!$E20) -> 0.08925339528 | H20: 0.9481548472 | I20: 0 | J20: ='3.2 Input'!$D24*10^-3-'3.2 Output'!$F20 -> 0 | K20: ='3.2 Input'!$E24*10^-3-'3.2 Output'!$G20 -> 0.2807466047
B21: 9 | C21: 8 - 9 | D21: ='3.2 Input'!$C$12*'3.2 Input'!$C$13*'3.2 Input'!$C$9*'3.2 Input'!$C$6*'3.2 Input'!$F25*10^-3 -> 2.445012788 | E21: ='3.2 Input'!$C$12*'3.2 Input'!$C$13*'3.2 Input'!$C$9*'3.2 Input'!$C$7*'3.2 Input'!$G25*10^-3 -> 0.7773521969 | F21: =IF('3.2 Input'!$D25*10^-3<'3.2 Output'!$D21,'3.2 Input'!$D25*10^-3,'3.2 Output'!$D21) -> 0.575 | G21: =IF('3.2 Input'!$E25*10^-3<'3.2 Output'!$E21,'3.2 Input'!$E25*10^-3,'3.2 Output'!$E21) -> 0.725 | H21: 1.870012788 | I21: 0.05235219688 | J21: ='3.2 Input'!$D25*10^-3-'3.2 Output'!$F21 -> 0 | K21: ='3.2 Input'!$E25*10^-3-'3.2 Output'!$G21 -> 0
B22: 10 | C22: 9 - 10 | D22: ='3.2 Input'!$C$12*'3.2 Input'!$C$13*'3.2 Input'!$C$9*'3.2 Input'!$C$6*'3.2 Input'!$F26*10^-3 -> 3.320569259 | E22: ='3.2 Input'!$C$12*'3.2 Input'!$C$13*'3.2 Input'!$C$9*'3.2 Input'!$C$7*'3.2 Input'!$G26*10^-3 -> 1.593596935 | F22: =IF('3.2 Input'!$D26*10^-3<'3.2 Output'!$D22,'3.2 Input'!$D26*10^-3,'3.2 Output'!$D22) -> 0.55 | G22: =IF('3.2 Input'!$E26*10^-3<'3.2 Output'!$E22,'3.2 Input'!$E26*10^-3,'3.2 Output'!$E22) -> 0.45 | H22: 2.770569259 | I22: 1.143596935 | J22: ='3.2 Input'!$D26*10^-3-'3.2 Output'!$F22 -> 0 | K22: ='3.2 Input'!$E26*10^-3-'3.2 Output'!$G22 -> 0
B23: 11 | C23: 10 - 11 | D23: ='3.2 Input'!$C$12*'3.2 Input'!$C$13*'3.2 Input'!$C$9*'3.2 Input'!$C$6*'3.2 Input'!$F27*10^-3 -> 4.002137325 | E23: ='3.2 Input'!$C$12*'3.2 Input'!$C$13*'3.2 Input'!$C$9*'3.2 Input'!$C$7*'3.2 Input'!$G27*10^-3 -> 2.25875911 | F23: =IF('3.2 Input'!$D27*10^-3<'3.2 Output'!$D23,'3.2 Input'!$D27*10^-3,'3.2 Output'!$D23) -> 0.55 | G23: =IF('3.2 Input'!$E27*10^-3<'3.2 Output'!$E23,'3.2 Input'!$E27*10^-3,'3.2 Output'!$E23) -> 0.45 | H23: 3.452137325 | I23: 1.80875911 | J23: ='3.2 Input'!$D27*10^-3-'3.2 Output'!$F23 -> 0 | K23: ='3.2 Input'!$E27*10^-3-'3.2 Output'!$G23 -> 0
B24: 12 | C24: 11 - 12 | D24: ='3.2 Input'!$C$12*'3.2 Input'!$C$13*'3.2 Input'!$C$9*'3.2 Input'!$C$6*'3.2 Input'!$F28*10^-3 -> 4.42046929 | E24: ='3.2 Input'!$C$12*'3.2 Input'!$C$13*'3.2 Input'!$C$9*'3.2 Input'!$C$7*'3.2 Input'!$G28*10^-3 -> 2.673114258 | F24: =IF('3.2 Input'!$D28*10^-3<'3.2 Output'!$D24,'3.2 Input'!$D28*10^-3,'3.2 Output'!$D24) -> 1.675 | G24: =IF('3.2 Input'!$E28*10^-3<'3.2 Output'!$E24,'3.2 Input'!$E28*10^-3,'3.2 Output'!$E24) -> 0.45 | H24: 2.74546929 | I24: 2.223114258 | J24: ='3.2 Input'!$D28*10^-3-'3.2 Output'!$F24 -> 0 | K24: ='3.2 Input'!$E28*10^-3-'3.2 Output'!$G24 -> 0
B25: 13 | C25: 12 - 13 | D25: ='3.2 Input'!$C$12*'3.2 Input'!$C$13*'3.2 Input'!$C$9*'3.2 Input'!$C$6*'3.2 Input'!$F29*10^-3 -> 4.441338458 | E25: ='3.2 Input'!$C$12*'3.2 Input'!$C$13*'3.2 Input'!$C$9*'3.2 Input'!$C$7*'3.2 Input'!$G29*10^-3 -> 2.825692687 | F25: =IF('3.2 Input'!$D29*10^-3<'3.2 Output'!$D25,'3.2 Input'!$D29*10^-3,'3.2 Output'!$D25) -> 3.675 | G25: =IF('3.2 Input'!$E29*10^-3<'3.2 Output'!$E25,'3.2 Input'!$E29*10^-3,'3.2 Output'!$E25) -> 2.45 | H25: 0.7663384579 | I25: 0.3756926874 | J25: ='3.2 Input'!$D29*10^-3-'3.2 Output'!$F25 -> 0 | K25: ='3.2 Input'!$E29*10^-3-'3.2 Output'!$G25 -> 0
B26: 14 | C26: 13 - 14 | D26: ='3.2 Input'!$C$12*'3.2 Input'!$C$13*'3.2 Input'!$C$9*'3.2 Input'!$C$6*'3.2 Input'!$F30*10^-3 -> 4.218417796 | E26: ='3.2 Input'!$C$12*'3.2 Input'!$C$13*'3.2 Input'!$C$9*'3.2 Input'!$C$7*'3.2 Input'!$G30*10^-3 -> 2.61128509 | F26: =IF('3.2 Input'!$D30*10^-3<'3.2 Output'!$D26,'3.2 Input'!$D30*10^-3,'3.2 Output'!$D26) -> 2.8 | G26: =IF('3.2 Input'!$E30*10^-3<'3.2 Output'!$E26,'3.2 Input'!$E30*10^-3,'3.2 Output'!$E26) -> 0.45 | H26: 1.418417796 | I26: 2.16128509 | J26: ='3.2 Input'!$D30*10^-3-'3.2 Output'!$F26 -> 0 | K26: ='3.2 Input'!$E30*10^-3-'3.2 Output'!$G26 -> 0
B27: 15 | C27: 14 - 15 | D27: ='3.2 Input'!$C$12*'3.2 Input'!$C$13*'3.2 Input'!$C$9*'3.2 Input'!$C$6*'3.2 Input'!$F31*10^-3 -> 3.707123172 | E27: ='3.2 Input'!$C$12*'3.2 Input'!$C$13*'3.2 Input'!$C$9*'3.2 Input'!$C$7*'3.2 Input'!$G31*10^-3 -> 2.308122719 | F27: =IF('3.2 Input'!$D31*10^-3<'3.2 Output'!$D27,'3.2 Input'!$D31*10^-3,'3.2 Output'!$D27) -> 2.8 | G27: =IF('3.2 Input'!$E31*10^-3<'3.2 Output'!$E27,'3.2 Input'!$E31*10^-3,'3.2 Output'!$E27) -> 0.45 | H27: 0.9071231725 | I27: 1.858122719 | J27: ='3.2 Input'!$D31*10^-3-'3.2 Output'!$F27 -> 0 | K27: ='3.2 Input'!$E31*10^-3-'3.2 Output'!$G27 -> 0
B28: 16 | C28: 15 - 16 | D28: ='3.2 Input'!$C$12*'3.2 Input'!$C$13*'3.2 Input'!$C$9*'3.2 Input'!$C$6*'3.2 Input'!$F32*10^-3 -> 2.923106463 | E28: ='3.2 Input'!$C$12*'3.2 Input'!$C$13*'3.2 Input'!$C$9*'3.2 Input'!$C$7*'3.2 Input'!$G32*10^-3 -> 1.529773278 | F28: =IF('3.2 Input'!$D32*10^-3<'3.2 Output'!$D28,'3.2 Input'!$D32*10^-3,'3.2 Output'!$D28) -> 2.923106463 | G28: =IF('3.2 Input'!$E32*10^-3<'3.2 Output'!$E28,'3.2 Input'!$E32*10^-3,'3.2 Output'!$E28) -> 0.91 | H28: 0 | I28: 0.6197732778 | J28: ='3.2 Input'!$D32*10^-3-'3.2 Output'!$F28 -> 0.08689353736 | K28: ='3.2 Input'!$E32*10^-3-'3.2 Output'!$G28 -> 0
B29: 17 | C29: 16 - 17 | D29: ='3.2 Input'!$C$12*'3.2 Input'!$C$13*'3.2 Input'!$C$9*'3.2 Input'!$C$6*'3.2 Input'!$F33*10^-3 -> 1.990159779 | E29: ='3.2 Input'!$C$12*'3.2 Input'!$C$13*'3.2 Input'!$C$9*'3.2 Input'!$C$7*'3.2 Input'!$G33*10^-3 -> 0.6477103937 | F29: =IF('3.2 Input'!$D33*10^-3<'3.2 Output'!$D29,'3.2 Input'!$D33*10^-3,'3.2 Output'!$D29) -> 1.990159779 | G29: =IF('3.2 Input'!$E33*10^-3<'3.2 Output'!$E29,'3.2 Input'!$E33*10^-3,'3.2 Output'!$E29) -> 0.6477103937 | H29: 0 | I29: 0 | J29: ='3.2 Input'!$D33*10^-3-'3.2 Output'!$F29 -> 1.694840221 | K29: ='3.2 Input'!$E33*10^-3-'3.2 Output'!$G29 -> 0.6872896063
B30: 18 | C30: 17 - 18 | D30: ='3.2 Input'!$C$12*'3.2 Input'!$C$13*'3.2 Input'!$C$9*'3.2 Input'!$C$6*'3.2 Input'!$F34*10^-3 -> 1.016897656 | E30: ='3.2 Input'!$C$12*'3.2 Input'!$C$13*'3.2 Input'!$C$9*'3.2 Input'!$C$7*'3.2 Input'!$G34*10^-3 -> 0.0673140132 | F30: =IF('3.2 Input'!$D34*10^-3<'3.2 Output'!$D30,'3.2 Input'!$D34*10^-3,'3.2 Output'!$D30) -> 1.016897656 | G30: =IF('3.2 Input'!$E34*10^-3<'3.2 Output'!$E30,'3.2 Input'!$E34*10^-3,'3.2 Output'!$E30) -> 0.0673140132 | H30: 0 | I30: 0 | J30: ='3.2 Input'!$D34*10^-3-'3.2 Output'!$F30 -> 4.043102344 | K30: ='3.2 Input'!$E34*10^-3-'3.2 Output'!$G30 -> 2.642685987
B31: 19 | C31: 18 - 19 | D31: ='3.2 Input'!$C$12*'3.2 Input'!$C$13*'3.2 Input'!$C$9*'3.2 Input'!$C$6*'3.2 Input'!$F35*10^-3 -> 0.1873482156 | E31: ='3.2 Input'!$C$12*'3.2 Input'!$C$13*'3.2 Input'!$C$9*'3.2 Input'!$C$7*'3.2 Input'!$G35*10^-3 -> 0 | F31: =IF('3.2 Input'!$D35*10^-3<'3.2 Output'!$D31,'3.2 Input'!$D35*10^-3,'3.2 Output'!$D31) -> 0.1873482156 | G31: =IF('3.2 Input'!$E35*10^-3<'3.2 Output'!$E31,'3.2 Input'!$E35*10^-3,'3.2 Output'!$E31) -> 0 | H31: 0 | I31: 0 | J31: ='3.2 Input'!$D35*10^-3-'3.2 Output'!$F31 -> 3.822651784 | K31: ='3.2 Input'!$E35*10^-3-'3.2 Output'!$G31 -> 2.6
B32: 20 | C32: 19 - 20 | D32: ='3.2 Input'!$C$12*'3.2 Input'!$C$13*'3.2 Input'!$C$9*'3.2 Input'!$C$6*'3.2 Input'!$F36*10^-3 -> 0 | E32: ='3.2 Input'!$C$12*'3.2 Input'!$C$13*'3.2 Input'!$C$9*'3.2 Input'!$C$7*'3.2 Input'!$G36*10^-3 -> 0 | F32: =IF('3.2 Input'!$D36*10^-3<'3.2 Output'!$D32,'3.2 Input'!$D36*10^-3,'3.2 Output'!$D32) -> 0 | G32: =IF('3.2 Input'!$E36*10^-3<'3.2 Output'!$E32,'3.2 Input'!$E36*10^-3,'3.2 Output'!$E32) -> 0 | H32: 0 | I32: 0 | J32: ='3.2 Input'!$D36*10^-3-'3.2 Output'!$F32 -> 4.76 | K32: ='3.2 Input'!$E36*10^-3-'3.2 Output'!$G32 -> 3.35
B33: 21 | C33: 20 - 21 | D33: ='3.2 Input'!$C$12*'3.2 Input'!$C$13*'3.2 Input'!$C$9*'3.2 Input'!$C$6*'3.2 Input'!$F37*10^-3 -> 0 | E33: ='3.2 Input'!$C$12*'3.2 Input'!$C$13*'3.2 Input'!$C$9*'3.2 Input'!$C$7*'3.2 Input'!$G37*10^-3 -> 0 | F33: =IF('3.2 Input'!$D37*10^-3<'3.2 Output'!$D33,'3.2 Input'!$D37*10^-3,'3.2 Output'!$D33) -> 0 | G33: =IF('3.2 Input'!$E37*10^-3<'3.2 Output'!$E33,'3.2 Input'!$E37*10^-3,'3.2 Output'!$E33) -> 0 | H33: 0 | I33: 0 | J33: ='3.2 Input'!$D37*10^-3-'3.2 Output'!$F33 -> 3.285 | K33: ='3.2 Input'!$E37*10^-3-'3.2 Output'!$G33 -> 2.6
B34: 22 | C34: 21 - 22 | D34: ='3.2 Input'!$C$12*'3.2 Input'!$C$13*'3.2 Input'!$C$9*'3.2 Input'!$C$6*'3.2 Input'!$F38*10^-3 -> 0 | E34: ='3.2 Input'!$C$12*'3.2 Input'!$C$13*'3.2 Input'!$C$9*'3.2 Input'!$C$7*'3.2 Input'!$G38*10^-3 -> 0 | F34: =IF('3.2 Input'!$D38*10^-3<'3.2 Output'!$D34,'3.2 Input'!$D38*10^-3,'3.2 Output'!$D34) -> 0 | G34: =IF('3.2 Input'!$E38*10^-3<'3.2 Output'!$E34,'3.2 Input'!$E38*10^-3,'3.2 Output'!$E34) -> 0 | H34: 0 | I34: 0 | J34: ='3.2 Input'!$D38*10^-3-'3.2 Output'!$F34 -> 1.95 | K34: ='3.2 Input'!$E38*10^-3-'3.2 Output'!$G34 -> 1.85
B35: 23 | C35: 22 - 23 | D35: ='3.2 Input'!$C$12*'3.2 Input'!$C$13*'3.2 Input'!$C$9*'3.2 Input'!$C$6*'3.2 Input'!$F39*10^-3 -> 0 | E35: ='3.2 Input'!$C$12*'3.2 Input'!$C$13*'3.2 Input'!$C$9*'3.2 Input'!$C$7*'3.2 Input'!$G39*10^-3 -> 0 | F35: =IF('3.2 Input'!$D39*10^-3<'3.2 Output'!$D35,'3.2 Input'!$D39*10^-3,'3.2 Output'!$D35) -> 0 | G35: =IF('3.2 Input'!$E39*10^-3<'3.2 Output'!$E35,'3.2 Input'!$E39*10^-3,'3.2 Output'!$E35) -> 0 | H35: 0 | I35: 0 | J35: ='3.2 Input'!$D39*10^-3-'3.2 Output'!$F35 -> 1.95 | K35: ='3.2 Input'!$E39*10^-3-'3.2 Output'!$G35 -> 1.85
B36: 24 | C36: 23 - 24 | D36: ='3.2 Input'!$C$12*'3.2 Input'!$C$13*'3.2 Input'!$C$9*'3.2 Input'!$C$6*'3.2 Input'!$F40*10^-3 -> 0 | E36: ='3.2 Input'!$C$12*'3.2 Input'!$C$13*'3.2 Input'!$C$9*'3.2 Input'!$C$7*'3.2 Input'!$G40*10^-3 -> 0 | F36: =IF('3.2 Input'!$D40*10^-3<'3.2 Output'!$D36,'3.2 Input'!$D40*10^-3,'3.2 Output'!$D36) -> 0 | G36: =IF('3.2 Input'!$E40*10^-3<'3.2 Output'!$E36,'3.2 Input'!$E40*10^-3,'3.2 Output'!$E36) -> 0 | H36: 0 | I36: 0 | J36: ='3.2 Input'!$D40*10^-3-'3.2 Output'!$F36 -> 2.535 | K36: ='3.2 Input'!$E40*10^-3-'3.2 Output'!$G36 -> 1.31
B39: Περίοδος | C39: Ώρα | D39: SOC.summer | E39: E_BT_av.summer (kWh) | F39: E_TBT.summer (kWh) | G39: E_FBT.summer (kWh) | H39: E_und.summer (kWh) | I39: E_aux.summer (kWh)
B40: 1 | C40: 0-1 | D40: =$E40/'3.2 Input'!$C$10+'3.2 Input'!$C$11 -> 0.5375 | E40: =('3.2 Input'!$C$8-'3.2 Input'!$C$11)*'3.2 Input'!$C$10+$F40-$G40 -> 1.8 | F40: =IF($H13<$C$8-('3.2 Input'!$C$8-'3.2 Input'!$C$11)*'3.2 Input'!$C$10,'3.2 Output'!$H13,'3.2 Input'!$C$8-'3.2 Input'!$C$11*'3.2 Input'!$C$10) -> 0 | G40: =IF($J13<('3.2 Input'!$C$8-'3.2 Input'!$C$11)*'3.2 Input'!$C$10,$J13,('3.2 Input'!$C$8-'3.2 Input'!$C$11)*'3.2 Input'!$C$10) -> 0.6 | H40: =$H13-$F40 -> 0 | I40: =$J13-$G40 -> 0
B41: 2 | C41: 1 - 2 | D41: =$E41/'3.2 Input'!$C$10+'3.2 Input'!$C$11 -> 0.525 | E41: =($D40-'3.2 Input'!$C$11)*'3.2 Input'!$C$10+$F41-$G41 -> 1.2 | F41: =IF($H14<$C$8-($D40-'3.2 Input'!$C$11)*'3.2 Input'!$C$10,'3.2 Output'!$H14,$C$8-($D40-'3.2 Input'!$C$11)*'3.2 Input'!$C$10) -> 0 | G41: =IF($J14<($D40-'3.2 Input'!$C$11)*'3.2 Input'!$C$10,$J14,($D40-'3.2 Input'!$C$11)*'3.2 Input'!$C$10) -> 0.6 | H41: =$H14-$F41 -> 0 | I41: =$J14-$G41 -> 0
B42: 3 | C42: 2 - 3 | D42: =$E42/'3.2 Input'!$C$10+'3.2 Input'!$C$11 -> 0.5125 | E42: =($D41-'3.2 Input'!$C$11)*'3.2 Input'!$C$10+$F42-$G42 -> 0.6 | F42: =IF($H15<$C$8-($D41-'3.2 Input'!$C$11)*'3.2 Input'!$C$10,'3.2 Output'!$H15,$C$8-($D41-'3.2 Input'!$C$11)*'3.2 Input'!$C$10) -> 0 | G42: =IF($J15<($D41-'3.2 Input'!$C$11)*'3.2 Input'!$C$10,$J15,($D41-'3.2 Input'!$C$11)*'3.2 Input'!$C$10) -> 0.6 | H42: =$H15-$F42 -> 0 | I42: =$J15-$G42 -> 0
B43: 4 | C43: 3 - 4 | D43: =$E43/'3.2 Input'!$C$10+'3.2 Input'!$C$11 -> 0.5052083333 | E43: =($D42-'3.2 Input'!$C$11)*'3.2 Input'!$C$10+$F43-$G43 -> 0.25 | F43: =IF($H16<$C$8-($D42-'3.2 Input'!$C$11)*'3.2 Input'!$C$10,'3.2 Output'!$H16,$C$8-($D42-'3.2 Input'!$C$11)*'3.2 Input'!$C$10) -> 0 | G43: =IF($J16<($D42-'3.2 Input'!$C$11)*'3.2 Input'!$C$10,$J16,($D42-'3.2 Input'!$C$11)*'3.2 Input'!$C$10) -> 0.35 | H43: 0 | I43: 0
B44: 5 | C44: 4 - 5 | D44: =$E44/'3.2 Input'!$C$10+'3.2 Input'!$C$11 -> 0.5 | E44: =($D43-'3.2 Input'!$C$11)*'3.2 Input'!$C$10+$F44-$G44 -> 0 | F44: =IF($H17<$C$8-($D43-'3.2 Input'!$C$11)*'3.2 Input'!$C$10,'3.2 Output'!$H17,$C$8-($D43-'3.2 Input'!$C$11)*'3.2 Input'!$C$10) -> 0 | G44: =IF($J17<($D43-'3.2 Input'!$C$11)*'3.2 Input'!$C$10,$J17,($D43-'3.2 Input'!$C$11)*'3.2 Input'!$C$10) -> 0.25 | H44: 0 | I44: 0.1
B45: 6 | C45: 5 - 6 | D45: =$E45/'3.2 Input'!$C$10+'3.2 Input'!$C$11 -> 0.5 | E45: =($D44-'3.2 Input'!$C$11)*'3.2 Input'!$C$10+$F45-$G45 -> 0 | F45: =IF($H18<$C$8-($D44-'3.2 Input'!$C$11)*'3.2 Input'!$C$10,'3.2 Output'!$H18,$C$8-($D44-'3.2 Input'!$C$11)*'3.2 Input'!$C$10) -> 0 | G45: =IF($J18<($D44-'3.2 Input'!$C$11)*'3.2 Input'!$C$10,$J18,($D44-'3.2 Input'!$C$11)*'3.2 Input'!$C$10) -> 0 | H45: 0 | I45: 0.3428855108
B46: 7 | C46: 6 - 7 | D46: =$E46/'3.2 Input'!$C$10+'3.2 Input'!$C$11 -> 0.5019472881 | E46: =($D45-'3.2 Input'!$C$11)*'3.2 Input'!$C$10+$F46-$G46 -> 0.0934698268 | F46: =IF($H19<$C$8-($D45-'3.2 Input'!$C$11)*'3.2 Input'!$C$10,'3.2 Output'!$H19,$C$8-($D45-'3.2 Input'!$C$11)*'3.2 Input'!$C$10) -> 0.0934698268 | G46: =IF($J19<($D45-'3.2 Input'!$C$11)*'3.2 Input'!$C$10,$J19,($D45-'3.2 Input'!$C$11)*'3.2 Input'!$C$10) -> 0 | H46: 0 | I46: 0
B47: 8 | C47: 7 - 8 | D47: =$E47/'3.2 Input'!$C$10+'3.2 Input'!$C$11 -> 0.521700514 | E47: =($D46-'3.2 Input'!$C$11)*'3.2 Input'!$C$10+$F47-$G47 -> 1.041624674 | F47: =IF($H20<$C$8-($D46-'3.2 Input'!$C$11)*'3.2 Input'!$C$10,'3.2 Output'!$H20,$C$8-($D46-'3.2 Input'!$C$11)*'3.2 Input'!$C$10) -> 0.9481548472 | G47: =IF($J20<($D46-'3.2 Input'!$C$11)*'3.2 Input'!$C$10,$J20,($D46-'3.2 Input'!$C$11)*'3.2 Input'!$C$10) -> 0 | H47: 0 | I47: 0
B48: 9 | C48: 8 - 9 | D48: =$E48/'3.2 Input'!$C$10+'3.2 Input'!$C$11 -> 0.5606591138 | E48: =($D47-'3.2 Input'!$C$11)*'3.2 Input'!$C$10+$F48-$G48 -> 2.911637462 | F48: =IF($H21<$C$8-($D47-'3.2 Input'!$C$11)*'3.2 Input'!$C$10,'3.2 Output'!$H21,$C$8-($D47-'3.2 Input'!$C$11)*'3.2 Input'!$C$10) -> 1.870012788 | G48: =IF($J21<($D47-'3.2 Input'!$C$11)*'3.2 Input'!$C$10,$J21,($D47-'3.2 Input'!$C$11)*'3.2 Input'!$C$10) -> 0 | H48: 0 | I48: 0
B49: 10 | C49: 9 - 10 | D49: =$E49/'3.2 Input'!$C$10+'3.2 Input'!$C$11 -> 0.6183793067 | E49: =($D48-'3.2 Input'!$C$11)*'3.2 Input'!$C$10+$F49-$G49 -> 5.682206722 | F49: =IF($H22<$C$8-($D48-'3.2 Input'!$C$11)*'3.2 Input'!$C$10,'3.2 Output'!$H22,$C$8-($D48-'3.2 Input'!$C$11)*'3.2 Input'!$C$10) -> 2.770569259 | G49: =IF($J22<($D48-'3.2 Input'!$C$11)*'3.2 Input'!$C$10,$J22,($D48-'3.2 Input'!$C$11)*'3.2 Input'!$C$10) -> 0 | H49: 0 | I49: 0
B50: 11 | C50: 10 - 11 | D50: =$E50/'3.2 Input'!$C$10+'3.2 Input'!$C$11 -> 0.6902988343 | E50: =($D49-'3.2 Input'!$C$11)*'3.2 Input'!$C$10+$F50-$G50 -> 9.134344046 | F50: =IF($H23<$C$8-($D49-'3.2 Input'!$C$11)*'3.2 Input'!$C$10,'3.2 Output'!$H23,$C$8-($D49-'3.2 Input'!$C$11)*'3.2 Input'!$C$10) -> 3.452137325 | G50: =IF($J23<($D49-'3.2 Input'!$C$11)*'3.2 Input'!$C$10,$J23,($D49-'3.2 Input'!$C$11)*'3.2 Input'!$C$10) -> 0 | H50: 0 | I50: 0
B51: 12 | C51: 11 - 12 | D51: =$E51/'3.2 Input'!$C$10+'3.2 Input'!$C$11 -> 0.7474961112 | E51: =($D50-'3.2 Input'!$C$11)*'3.2 Input'!$C$10+$F51-$G51 -> 11.87981334 | F51: =IF($H24<$C$8-($D50-'3.2 Input'!$C$11)*'3.2 Input'!$C$10,'3.2 Output'!$H24,$C$8-($D50-'3.2 Input'!$C$11)*'3.2 Input'!$C$10) -> 2.74546929 | G51: =IF($J24<($D50-'3.2 Input'!$C$11)*'3.2 Input'!$C$10,$J24,($D50-'3.2 Input'!$C$11)*'3.2 Input'!$C$10) -> 0 | H51: 0 | I51: 0
B52: 13 | C52: 12 - 13 | D52: =$E52/'3.2 Input'!$C$10+'3.2 Input'!$C$11 -> 0.7634614957 | E52: =($D51-'3.2 Input'!$C$11)*'3.2 Input'!$C$10+$F52-$G52 -> 12.64615179 | F52: =IF($H25<$C$8-($D51-'3.2 Input'!$C$11)*'3.2 Input'!$C$10,'3.2 Output'!$H25,$C$8-($D51-'3.2 Input'!$C$11)*'3.2 Input'!$C$10) -> 0.7663384579 | G52: =IF($J25<($D51-'3.2 Input'!$C$11)*'3.2 Input'!$C$10,$J25,($D51-'3.2 Input'!$C$11)*'3.2 Input'!$C$10) -> 0 | H52: 0 | I52: 0
B53: 14 | C53: 13 - 14 | D53: =$E53/'3.2 Input'!$C$10+'3.2 Input'!$C$11 -> 0.7930118665 | E53: =($D52-'3.2 Input'!$C$11)*'3.2 Input'!$C$10+$F53-$G53 -> 14.06456959 | F53: =IF($H26<$C$8-($D52-'3.2 Input'!$C$11)*'3.2 Input'!$C$10,'3.2 Output'!$H26,$C$8-($D52-'3.2 Input'!$C$11)*'3.2 Input'!$C$10) -> 1.418417796 | G53: =IF($J26<($D52-'3.2 Input'!$C$11)*'3.2 Input'!$C$10,$J26,($D52-'3.2 Input'!$C$11)*'3.2 Input'!$C$10) -> 0 | H53: 0 | I53: 0
B54: 15 | C54: 14 - 15 | D54: =$E54/'3.2 Input'!$C$10+'3.2 Input'!$C$11 -> 0.8119102659 | E54: =($D53-'3.2 Input'!$C$11)*'3.2 Input'!$C$10+$F54-$G54 -> 14.97169276 | F54: =IF($H27<$C$8-($D53-'3.2 Input'!$C$11)*'3.2 Input'!$C$10,'3.2 Output'!$H27,$C$8-($D53-'3.2 Input'!$C$11)*'3.2 Input'!$C$10) -> 0.9071231725 | G54: =IF($J27<($D53-'3.2 Input'!$C$11)*'3.2 Input'!$C$10,$J27,($D53-'3.2 Input'!$C$11)*'3.2 Input'!$C$10) -> 0 | H54: 0 | I54: 0
B55: 16 | C55: 15 - 16 | D55: =$E55/'3.2 Input'!$C$10+'3.2 Input'!$C$11 -> 0.8100999839 | E55: =($D54-'3.2 Input'!$C$11)*'3.2 Input'!$C$10+$F55-$G55 -> 14.88479923 | F55: =IF($H28<$C$8-($D54-'3.2 Input'!$C$11)*'3.2 Input'!$C$10,'3.2 Output'!$H28,$C$8-($D54-'3.2 Input'!$C$11)*'3.2 Input'!$C$10) -> 0 | G55: =IF($J28<($D54-'3.2 Input'!$C$11)*'3.2 Input'!$C$10,$J28,($D54-'3.2 Input'!$C$11)*'3.2 Input'!$C$10) -> 0.08689353736 | H55: 0 | I55: 0
B56: 17 | C56: 16 - 17 | D56: =$E56/'3.2 Input'!$C$10+'3.2 Input'!$C$11 -> 0.7747908126 | E56: =($D55-'3.2 Input'!$C$11)*'3.2 Input'!$C$10+$F56-$G56 -> 13.189959 | F56: =IF($H29<$C$8-($D55-'3.2 Input'!$C$11)*'3.2 Input'!$C$10,'3.2 Output'!$H29,$C$8-($D55-'3.2 Input'!$C$11)*'3.2 Input'!$C$10) -> 0 | G56: =IF($J29<($D55-'3.2 Input'!$C$11)*'3.2 Input'!$C$10,$J29,($D55-'3.2 Input'!$C$11)*'3.2 Input'!$C$10) -> 1.694840221 | H56: 0 | I56: 0
B57: 18 | C57: 17 - 18 | D57: =$E57/'3.2 Input'!$C$10+'3.2 Input'!$C$11 -> 0.6905595138 | E57: =($D56-'3.2 Input'!$C$11)*'3.2 Input'!$C$10+$F57-$G57 -> 9.14685666 | F57: =IF($H30<$C$8-($D56-'3.2 Input'!$C$11)*'3.2 Input'!$C$10,'3.2 Output'!$H30,$C$8-($D56-'3.2 Input'!$C$11)*'3.2 Input'!$C$10) -> 0 | G57: =IF($J30<($D56-'3.2 Input'!$C$11)*'3.2 Input'!$C$10,$J30,($D56-'3.2 Input'!$C$11)*'3.2 Input'!$C$10) -> 4.043102344 | H57: 0 | I57: 0
B58: 19 | C58: 18 - 19 | D58: =$E58/'3.2 Input'!$C$10+'3.2 Input'!$C$11 -> 0.6109209349 | E58: =($D57-'3.2 Input'!$C$11)*'3.2 Input'!$C$10+$F58-$G58 -> 5.324204876 | F58: =IF($H31<$C$8-($D57-'3.2 Input'!$C$11)*'3.2 Input'!$C$10,'3.2 Output'!$H31,$C$8-($D57-'3.2 Input'!$C$11)*'3.2 Input'!$C$10) -> 0 | G58: =IF($J31<($D57-'3.2 Input'!$C$11)*'3.2 Input'!$C$10,$J31,($D57-'3.2 Input'!$C$11)*'3.2 Input'!$C$10) -> 3.822651784 | H58: 0 | I58: 0
B59: 20 | C59: 19 - 20 | D59: =$E59/'3.2 Input'!$C$10+'3.2 Input'!$C$11 -> 0.5117542683 | E59: =($D58-'3.2 Input'!$C$11)*'3.2 Input'!$C$10+$F59-$G59 -> 0.5642048761 | F59: =IF($H32<$C$8-($D58-'3.2 Input'!$C$11)*'3.2 Input'!$C$10,'3.2 Output'!$H32,$C$8-($D58-'3.2 Input'!$C$11)*'3.2 Input'!$C$10) -> 0 | G59: =IF($J32<($D58-'3.2 Input'!$C$11)*'3.2 Input'!$C$10,$J32,($D58-'3.2 Input'!$C$11)*'3.2 Input'!$C$10) -> 4.76 | H59: 0 | I59: 0
B60: 21 | C60: 20 - 21 | D60: =$E60/'3.2 Input'!$C$10+'3.2 Input'!$C$11 -> 0.5 | E60: =($D59-'3.2 Input'!$C$11)*'3.2 Input'!$C$10+$F60-$G60 -> 0 | F60: =IF($H33<$C$8-($D59-'3.2 Input'!$C$11)*'3.2 Input'!$C$10,'3.2 Output'!$H33,$C$8-($D59-'3.2 Input'!$C$11)*'3.2 Input'!$C$10) -> 0 | G60: =IF($J33<($D59-'3.2 Input'!$C$11)*'3.2 Input'!$C$10,$J33,($D59-'3.2 Input'!$C$11)*'3.2 Input'!$C$10) -> 0.5642048761 | H60: 0 | I60: 2.720795124
B61: 22 | C61: 21 - 22 | D61: =$E61/'3.2 Input'!$C$10+'3.2 Input'!$C$11 -> 0.5 | E61: =($D60-'3.2 Input'!$C$11)*'3.2 Input'!$C$10+$F61-$G61 -> 0 | F61: =IF($H34<$C$8-($D60-'3.2 Input'!$C$11)*'3.2 Input'!$C$10,'3.2 Output'!$H34,$C$8-($D60-'3.2 Input'!$C$11)*'3.2 Input'!$C$10) -> 0 | G61: =IF($J34<($D60-'3.2 Input'!$C$11)*'3.2 Input'!$C$10,$J34,($D60-'3.2 Input'!$C$11)*'3.2 Input'!$C$10) -> 0 | H61: 0 | I61: 1.95
B62: 23 | C62: 22 - 23 | D62: =$E62/'3.2 Input'!$C$10+'3.2 Input'!$C$11 -> 0.5 | E62: =($D61-'3.2 Input'!$C$11)*'3.2 Input'!$C$10+$F62-$G62 -> 0 | F62: =IF($H35<$C$8-($D61-'3.2 Input'!$C$11)*'3.2 Input'!$C$10,'3.2 Output'!$H35,$C$8-($D61-'3.2 Input'!$C$11)*'3.2 Input'!$C$10) -> 0 | G62: =IF($J35<($D61-'3.2 Input'!$C$11)*'3.2 Input'!$C$10,$J35,($D61-'3.2 Input'!$C$11)*'3.2 Input'!$C$10) -> 0 | H62: 0 | I62: 1.95
B63: 24 | C63: 23 - 24 | D63: =$E63/'3.2 Input'!$C$10+'3.2 Input'!$C$11 -> 0.5 | E63: =($D62-'3.2 Input'!$C$11)*'3.2 Input'!$C$10+$F63-$G63 -> 0 | F63: =IF($H36<$C$8-($D62-'3.2 Input'!$C$11)*'3.2 Input'!$C$10,'3.2 Output'!$H36,$C$8-($D62-'3.2 Input'!$C$11)*'3.2 Input'!$C$10) -> 0 | G63: =IF($J36<($D62-'3.2 Input'!$C$11)*'3.2 Input'!$C$10,$J36,($D62-'3.2 Input'!$C$11)*'3.2 Input'!$C$10) -> 0 | H63: 0 | I63: 2.535
B66: Περίοδος | C66: Ώρα | D66: SOC.winter | E66: E_BT_av.winter (kWh) | F66: E_TBT.winter (kWh) | G66: E_FBT.winter (kWh) | H66: E_und.winter (kWh) | I66: E_aux.winter (kWh)
B67: 1 | C67: 0-1 | D67: =$E67/'3.2 Input'!$C$10+'3.2 Input'!$C$11 -> 0.5395833333 | E67: =('3.2 Input'!$C$8-'3.2 Input'!$C$11)*'3.2 Input'!$C$10+$F67-$G67 -> 1.9 | F67: =IF($I13<$C$8-('3.2 Input'!$C$8-'3.2 Input'!$C$11)*'3.2 Input'!$C$10,'3.2 Output'!$I13,'3.2 Input'!$C$8-'3.2 Input'!$C$11*'3.2 Input'!$C$10) -> 0 | G67: =IF($K13<('3.2 Input'!$C$8-'3.2 Input'!$C$11)*'3.2 Input'!$C$10,$K13,('3.2 Input'!$C$8-'3.2 Input'!$C$11)*'3.2 Input'!$C$10) -> 0.5 | H67: =$I13-$F67 -> 0 | I67: =$K13-$G67 -> 0
B68: 2 | C68: 1 - 2 | D68: =$E68/'3.2 Input'!$C$10+'3.2 Input'!$C$11 -> 0.5291666667 | E68: =('3.2 Output'!$D67-'3.2 Input'!$C$11)*'3.2 Input'!$C$10+$F68-$G68 -> 1.4 | F68: =IF($I14<'3.2 Output'!$C$8-('3.2 Output'!$D67-'3.2 Input'!$C$11)*'3.2 Input'!$C$10,$I14,'3.2 Output'!$C$8-('3.2 Output'!$D67-'3.2 Input'!$C$11)*'3.2 Input'!$C$10) -> 0 | G68: =IF($K14<('3.2 Output'!$D67-'3.2 Input'!$C$11)*'3.2 Input'!$C$10,$K14,('3.2 Output'!$D67-'3.2 Input'!$C$11)*'3.2 Input'!$C$10) -> 0.5 | H68: =$I14-$F68 -> 0 | I68: =$K14-$G68 -> 0
B69: 3 | C69: 2 - 3 | D69: =$E69/'3.2 Input'!$C$10+'3.2 Input'!$C$11 -> 0.5239583333 | E69: =('3.2 Output'!$D68-'3.2 Input'!$C$11)*'3.2 Input'!$C$10+$F69-$G69 -> 1.15 | F69: =IF($I15<'3.2 Output'!$C$8-('3.2 Output'!$D68-'3.2 Input'!$C$11)*'3.2 Input'!$C$10,$I15,'3.2 Output'!$C$8-('3.2 Output'!$D68-'3.2 Input'!$C$11)*'3.2 Input'!$C$10) -> 0 | G69: =IF($K15<('3.2 Output'!$D68-'3.2 Input'!$C$11)*'3.2 Input'!$C$10,$K15,('3.2 Output'!$D68-'3.2 Input'!$C$11)*'3.2 Input'!$C$10) -> 0.25 | H69: =$I15-$F69 -> 0 | I69: =$K15-$G69 -> 0
B70: 4 | C70: 3 - 4 | D70: =$E70/'3.2 Input'!$C$10+'3.2 Input'!$C$11 -> 0.51875 | E70: =('3.2 Output'!$D69-'3.2 Input'!$C$11)*'3.2 Input'!$C$10+$F70-$G70 -> 0.9 | F70: =IF($I16<'3.2 Output'!$C$8-('3.2 Output'!$D69-'3.2 Input'!$C$11)*'3.2 Input'!$C$10,$I16,'3.2 Output'!$C$8-('3.2 Output'!$D69-'3.2 Input'!$C$11)*'3.2 Input'!$C$10) -> 0 | G70: =IF($K16<('3.2 Output'!$D69-'3.2 Input'!$C$11)*'3.2 Input'!$C$10,$K16,('3.2 Output'!$D69-'3.2 Input'!$C$11)*'3.2 Input'!$C$10) -> 0.25 | H70: 0 | I70: 0
B71: 5 | C71: 4 - 5 | D71: =$E71/'3.2 Input'!$C$10+'3.2 Input'!$C$11 -> 0.5135416667 | E71: =('3.2 Output'!$D70-'3.2 Input'!$C$11)*'3.2 Input'!$C$10+$F71-$G71 -> 0.65 | F71: =IF($I17<'3.2 Output'!$C$8-('3.2 Output'!$D70-'3.2 Input'!$C$11)*'3.2 Input'!$C$10,$I17,'3.2 Output'!$C$8-('3.2 Output'!$D70-'3.2 Input'!$C$11)*'3.2 Input'!$C$10) -> 0 | G71: =IF($K17<('3.2 Output'!$D70-'3.2 Input'!$C$11)*'3.2 Input'!$C$10,$K17,('3.2 Output'!$D70-'3.2 Input'!$C$11)*'3.2 Input'!$C$10) -> 0.25 | H71: 0 | I71: 0
B72: 6 | C72: 5 - 6 | D72: =$E72/'3.2 Input'!$C$10+'3.2 Input'!$C$11 -> 0.5083333333 | E72: =('3.2 Output'!$D71-'3.2 Input'!$C$11)*'3.2 Input'!$C$10+$F72-$G72 -> 0.4 | F72: =IF($I18<'3.2 Output'!$C$8-('3.2 Output'!$D71-'3.2 Input'!$C$11)*'3.2 Input'!$C$10,$I18,'3.2 Output'!$C$8-('3.2 Output'!$D71-'3.2 Input'!$C$11)*'3.2 Input'!$C$10) -> 0 | G72: =IF($K18<('3.2 Output'!$D71-'3.2 Input'!$C$11)*'3.2 Input'!$C$10,$K18,('3.2 Output'!$D71-'3.2 Input'!$C$11)*'3.2 Input'!$C$10) -> 0.25 | H72: 0 | I72: 0
B73: 7 | C73: 6 - 7 | D73: =$E73/'3.2 Input'!$C$10+'3.2 Input'!$C$11 -> 0.500625 | E73: =('3.2 Output'!$D72-'3.2 Input'!$C$11)*'3.2 Input'!$C$10+$F73-$G73 -> 0.03 | F73: =IF($I19<'3.2 Output'!$C$8-('3.2 Output'!$D72-'3.2 Input'!$C$11)*'3.2 Input'!$C$10,$I19,'3.2 Output'!$C$8-('3.2 Output'!$D72-'3.2 Input'!$C$11)*'3.2 Input'!$C$10) -> 0 | G73: =IF($K19<('3.2 Output'!$D72-'3.2 Input'!$C$11)*'3.2 Input'!$C$10,$K19,('3.2 Output'!$D72-'3.2 Input'!$C$11)*'3.2 Input'!$C$10) -> 0.37 | H73: 0 | I73: 0
B74: 8 | C74: 7 - 8 | D74: =$E74/'3.2 Input'!$C$10+'3.2 Input'!$C$11 -> 0.5 | E74: =('3.2 Output'!$D73-'3.2 Input'!$C$11)*'3.2 Input'!$C$10+$F74-$G74 -> 0 | F74: =IF($I20<'3.2 Output'!$C$8-('3.2 Output'!$D73-'3.2 Input'!$C$11)*'3.2 Input'!$C$10,$I20,'3.2 Output'!$C$8-('3.2 Output'!$D73-'3.2 Input'!$C$11)*'3.2 Input'!$C$10) -> 0 | G74: =IF($K20<('3.2 Output'!$D73-'3.2 Input'!$C$11)*'3.2 Input'!$C$10,$K20,('3.2 Output'!$D73-'3.2 Input'!$C$11)*'3.2 Input'!$C$10) -> 0.03 | H74: 0 | I74: =$K20-$G74 -> 0.2507466047
B75: 9 | C75: 8 - 9 | D75: =$E75/'3.2 Input'!$C$10+'3.2 Input'!$C$11 -> 0.5010906708 | E75: =('3.2 Output'!$D74-'3.2 Input'!$C$11)*'3.2 Input'!$C$10+$F75-$G75 -> 0.05235219688 | F75: =IF($I21<'3.2 Output'!$C$8-('3.2 Output'!$D74-'3.2 Input'!$C$11)*'3.2 Input'!$C$10,$I21,'3.2 Output'!$C$8-('3.2 Output'!$D74-'3.2 Input'!$C$11)*'3.2 Input'!$C$10) -> 0.05235219688 | G75: =IF($K21<('3.2 Output'!$D74-'3.2 Input'!$C$11)*'3.2 Input'!$C$10,$K21,('3.2 Output'!$D74-'3.2 Input'!$C$11)*'3.2 Input'!$C$10) -> 0 | H75: 0 | I75: 0
B76: 10 | C76: 9 - 10 | D76: =$E76/'3.2 Input'!$C$10+'3.2 Input'!$C$11 -> 0.5249156069 | E76: =('3.2 Output'!$D75-'3.2 Input'!$C$11)*'3.2 Input'!$C$10+$F76-$G76 -> 1.195949132 | F76: =IF($I22<'3.2 Output'!$C$8-('3.2 Output'!$D75-'3.2 Input'!$C$11)*'3.2 Input'!$C$10,$I22,'3.2 Output'!$C$8-('3.2 Output'!$D75-'3.2 Input'!$C$11)*'3.2 Input'!$C$10) -> 1.143596935 | G76: =IF($K22<('3.2 Output'!$D75-'3.2 Input'!$C$11)*'3.2 Input'!$C$10,$K22,('3.2 Output'!$D75-'3.2 Input'!$C$11)*'3.2 Input'!$C$10) -> 0 | H76: 0 | I76: 0
B77: 11 | C77: 10 - 11 | D77: =$E77/'3.2 Input'!$C$10+'3.2 Input'!$C$11 -> 0.5625980884 | E77: =('3.2 Output'!$D76-'3.2 Input'!$C$11)*'3.2 Input'!$C$10+$F77-$G77 -> 3.004708241 | F77: =IF($I23<'3.2 Output'!$C$8-('3.2 Output'!$D76-'3.2 Input'!$C$11)*'3.2 Input'!$C$10,$I23,'3.2 Output'!$C$8-('3.2 Output'!$D76-'3.2 Input'!$C$11)*'3.2 Input'!$C$10) -> 1.80875911 | G77: =IF($K23<('3.2 Output'!$D76-'3.2 Input'!$C$11)*'3.2 Input'!$C$10,$K23,('3.2 Output'!$D76-'3.2 Input'!$C$11)*'3.2 Input'!$C$10) -> 0 | H77: 0 | I77: 0
B78: 12 | C78: 11 - 12 | D78: =$E78/'3.2 Input'!$C$10+'3.2 Input'!$C$11 -> 0.6089129687 | E78: =('3.2 Output'!$D77-'3.2 Input'!$C$11)*'3.2 Input'!$C$10+$F78-$G78 -> 5.227822499 | F78: =IF($I24<'3.2 Output'!$C$8-('3.2 Output'!$D77-'3.2 Input'!$C$11)*'3.2 Input'!$C$10,$I24,'3.2 Output'!$C$8-('3.2 Output'!$D77-'3.2 Input'!$C$11)*'3.2 Input'!$C$10) -> 2.223114258 | G78: =IF($K24<('3.2 Output'!$D77-'3.2 Input'!$C$11)*'3.2 Input'!$C$10,$K24,('3.2 Output'!$D77-'3.2 Input'!$C$11)*'3.2 Input'!$C$10) -> 0 | H78: 0 | I78: 0
B79: 13 | C79: 12 - 13 | D79: =$E79/'3.2 Input'!$C$10+'3.2 Input'!$C$11 -> 0.6167398997 | E79: =('3.2 Output'!$D78-'3.2 Input'!$C$11)*'3.2 Input'!$C$10+$F79-$G79 -> 5.603515186 | F79: =IF($I25<'3.2 Output'!$C$8-('3.2 Output'!$D78-'3.2 Input'!$C$11)*'3.2 Input'!$C$10,$I25,'3.2 Output'!$C$8-('3.2 Output'!$D78-'3.2 Input'!$C$11)*'3.2 Input'!$C$10) -> 0.3756926874 | G79: =IF($K25<('3.2 Output'!$D78-'3.2 Input'!$C$11)*'3.2 Input'!$C$10,$K25,('3.2 Output'!$D78-'3.2 Input'!$C$11)*'3.2 Input'!$C$10) -> 0 | H79: 0 | I79: 0
B80: 14 | C80: 13 - 14 | D80: =$E80/'3.2 Input'!$C$10+'3.2 Input'!$C$11 -> 0.6617666724 | E80: =('3.2 Output'!$D79-'3.2 Input'!$C$11)*'3.2 Input'!$C$10+$F80-$G80 -> 7.764800276 | F80: =IF($I26<'3.2 Output'!$C$8-('3.2 Output'!$D79-'3.2 Input'!$C$11)*'3.2 Input'!$C$10,$I26,'3.2 Output'!$C$8-('3.2 Output'!$D79-'3.2 Input'!$C$11)*'3.2 Input'!$C$10) -> 2.16128509 | G80: =IF($K26<('3.2 Output'!$D79-'3.2 Input'!$C$11)*'3.2 Input'!$C$10,$K26,('3.2 Output'!$D79-'3.2 Input'!$C$11)*'3.2 Input'!$C$10) -> 0 | H80: 0 | I80: 0
B81: 15 | C81: 14 - 15 | D81: =$E81/'3.2 Input'!$C$10+'3.2 Input'!$C$11 -> 0.7004775624 | E81: =('3.2 Output'!$D80-'3.2 Input'!$C$11)*'3.2 Input'!$C$10+$F81-$G81 -> 9.622922995 | F81: =IF($I27<'3.2 Output'!$C$8-('3.2 Output'!$D80-'3.2 Input'!$C$11)*'3.2 Input'!$C$10,$I27,'3.2 Output'!$C$8-('3.2 Output'!$D80-'3.2 Input'!$C$11)*'3.2 Input'!$C$10) -> 1.858122719 | G81: =IF($K27<('3.2 Output'!$D80-'3.2 Input'!$C$11)*'3.2 Input'!$C$10,$K27,('3.2 Output'!$D80-'3.2 Input'!$C$11)*'3.2 Input'!$C$10) -> 0 | H81: 0 | I81: 0
B82: 16 | C82: 15 - 16 | D82: =$E82/'3.2 Input'!$C$10+'3.2 Input'!$C$11 -> 0.7133895057 | E82: =('3.2 Output'!$D81-'3.2 Input'!$C$11)*'3.2 Input'!$C$10+$F82-$G82 -> 10.24269627 | F82: =IF($I28<'3.2 Output'!$C$8-('3.2 Output'!$D81-'3.2 Input'!$C$11)*'3.2 Input'!$C$10,$I28,'3.2 Output'!$C$8-('3.2 Output'!$D81-'3.2 Input'!$C$11)*'3.2 Input'!$C$10) -> 0.6197732778 | G82: =IF($K28<('3.2 Output'!$D81-'3.2 Input'!$C$11)*'3.2 Input'!$C$10,$K28,('3.2 Output'!$D81-'3.2 Input'!$C$11)*'3.2 Input'!$C$10) -> 0 | H82: 0 | I82: 0
B83: 17 | C83: 16 - 17 | D83: =$E83/'3.2 Input'!$C$10+'3.2 Input'!$C$11 -> 0.6990709722 | E83: =('3.2 Output'!$D82-'3.2 Input'!$C$11)*'3.2 Input'!$C$10+$F83-$G83 -> 9.555406667 | F83: =IF($I29<'3.2 Output'!$C$8-('3.2 Output'!$D82-'3.2 Input'!$C$11)*'3.2 Input'!$C$10,$I29,'3.2 Output'!$C$8-('3.2 Output'!$D82-'3.2 Input'!$C$11)*'3.2 Input'!$C$10) -> 0 | G83: =IF($K29<('3.2 Output'!$D82-'3.2 Input'!$C$11)*'3.2 Input'!$C$10,$K29,('3.2 Output'!$D82-'3.2 Input'!$C$11)*'3.2 Input'!$C$10) -> 0.6872896063 | H83: 0 | I83: 0
B84: 18 | C84: 17 - 18 | D84: =$E84/'3.2 Input'!$C$10+'3.2 Input'!$C$11 -> 0.6440150142 | E84: =('3.2 Output'!$D83-'3.2 Input'!$C$11)*'3.2 Input'!$C$10+$F84-$G84 -> 6.91272068 | F84: =IF($I30<'3.2 Output'!$C$8-('3.2 Output'!$D83-'3.2 Input'!$C$11)*'3.2 Input'!$C$10,$I30,'3.2 Output'!$C$8-('3.2 Output'!$D83-'3.2 Input'!$C$11)*'3.2 Input'!$C$10) -> 0 | G84: =IF($K30<('3.2 Output'!$D83-'3.2 Input'!$C$11)*'3.2 Input'!$C$10,$K30,('3.2 Output'!$D83-'3.2 Input'!$C$11)*'3.2 Input'!$C$10) -> 2.642685987 | H84: 0 | I84: 0
B85: 19 | C85: 18 - 19 | D85: =$E85/'3.2 Input'!$C$10+'3.2 Input'!$C$11 -> 0.5898483475 | E85: =('3.2 Output'!$D84-'3.2 Input'!$C$11)*'3.2 Input'!$C$10+$F85-$G85 -> 4.31272068 | F85: =IF($I31<'3.2 Output'!$C$8-('3.2 Output'!$D84-'3.2 Input'!$C$11)*'3.2 Input'!$C$10,$I31,'3.2 Output'!$C$8-('3.2 Output'!$D84-'3.2 Input'!$C$11)*'3.2 Input'!$C$10) -> 0 | G85: =IF($K31<('3.2 Output'!$D84-'3.2 Input'!$C$11)*'3.2 Input'!$C$10,$K31,('3.2 Output'!$D84-'3.2 Input'!$C$11)*'3.2 Input'!$C$10) -> 2.6 | H85: 0 | I85: 0
B86: 20 | C86: 19 - 20 | D86: =$E86/'3.2 Input'!$C$10+'3.2 Input'!$C$11 -> 0.5200566808 | E86: =('3.2 Output'!$D85-'3.2 Input'!$C$11)*'3.2 Input'!$C$10+$F86-$G86 -> 0.9627206799 | F86: =IF($I32<'3.2 Output'!$C$8-('3.2 Output'!$D85-'3.2 Input'!$C$11)*'3.2 Input'!$C$10,$I32,'3.2 Output'!$C$8-('3.2 Output'!$D85-'3.2 Input'!$C$11)*'3.2 Input'!$C$10) -> 0 | G86: =IF($K32<('3.2 Output'!$D85-'3.2 Input'!$C$11)*'3.2 Input'!$C$10,$K32,('3.2 Output'!$D85-'3.2 Input'!$C$11)*'3.2 Input'!$C$10) -> 3.35 | H86: 0 | I86: 0
B87: 21 | C87: 20 - 21 | D87: =$E87/'3.2 Input'!$C$10+'3.2 Input'!$C$11 -> 0.5 | E87: =('3.2 Output'!$D86-'3.2 Input'!$C$11)*'3.2 Input'!$C$10+$F87-$G87 -> 0 | F87: =IF($I33<'3.2 Output'!$C$8-('3.2 Output'!$D86-'3.2 Input'!$C$11)*'3.2 Input'!$C$10,$I33,'3.2 Output'!$C$8-('3.2 Output'!$D86-'3.2 Input'!$C$11)*'3.2 Input'!$C$10) -> 0 | G87: =IF($K33<('3.2 Output'!$D86-'3.2 Input'!$C$11)*'3.2 Input'!$C$10,$K33,('3.2 Output'!$D86-'3.2 Input'!$C$11)*'3.2 Input'!$C$10) -> 0.9627206799 | H87: 0 | I87: 1.63727932
B88: 22 | C88: 21 - 22 | D88: =$E88/'3.2 Input'!$C$10+'3.2 Input'!$C$11 -> 0.5 | E88: =('3.2 Output'!$D87-'3.2 Input'!$C$11)*'3.2 Input'!$C$10+$F88-$G88 -> 0 | F88: =IF($I34<'3.2 Output'!$C$8-('3.2 Output'!$D87-'3.2 Input'!$C$11)*'3.2 Input'!$C$10,$I34,'3.2 Output'!$C$8-('3.2 Output'!$D87-'3.2 Input'!$C$11)*'3.2 Input'!$C$10) -> 0 | G88: =IF($K34<('3.2 Output'!$D87-'3.2 Input'!$C$11)*'3.2 Input'!$C$10,$K34,('3.2 Output'!$D87-'3.2 Input'!$C$11)*'3.2 Input'!$C$10) -> 0 | H88: 0 | I88: 1.85
B89: 23 | C89: 22 - 23 | D89: =$E89/'3.2 Input'!$C$10+'3.2 Input'!$C$11 -> 0.5 | E89: =('3.2 Output'!$D88-'3.2 Input'!$C$11)*'3.2 Input'!$C$10+$F89-$G89 -> 0 | F89: =IF($I35<'3.2 Output'!$C$8-('3.2 Output'!$D88-'3.2 Input'!$C$11)*'3.2 Input'!$C$10,$I35,'3.2 Output'!$C$8-('3.2 Output'!$D88-'3.2 Input'!$C$11)*'3.2 Input'!$C$10) -> 0 | G89: =IF($K35<('3.2 Output'!$D88-'3.2 Input'!$C$11)*'3.2 Input'!$C$10,$K35,('3.2 Output'!$D88-'3.2 Input'!$C$11)*'3.2 Input'!$C$10) -> 0 | H89: 0 | I89: 1.85
B90: 24 | C90: 23 - 24 | D90: =$E90/'3.2 Input'!$C$10+'3.2 Input'!$C$11 -> 0.5 | E90: =('3.2 Output'!$D89-'3.2 Input'!$C$11)*'3.2 Input'!$C$10+$F90-$G90 -> 0 | F90: =IF($I36<'3.2 Output'!$C$8-('3.2 Output'!$D89-'3.2 Input'!$C$11)*'3.2 Input'!$C$10,$I36,'3.2 Output'!$C$8-('3.2 Output'!$D89-'3.2 Input'!$C$11)*'3.2 Input'!$C$10) -> 0 | G90: =IF($K36<('3.2 Output'!$D89-'3.2 Input'!$C$11)*'3.2 Input'!$C$10,$K36,('3.2 Output'!$D89-'3.2 Input'!$C$11)*'3.2 Input'!$C$10) -> 0 | H90: 0 | I90: 1.31

Sheet 3.3
B2: Εφαρμογή 3.3: Οικονομική ανάλυση αυτόνομου συστήματος
B4: Input
B6: E_tot | C6: 11585 | D6: kWh/year
B7: f_pv | C7: 0.85
B8: n_DSL | C8: 0.35
B9: IC_panel | C9: 360 | D9: euro
B10: IC_st | C10: 80 | D10: euro
B11: IC_inv | C11: 2750 | D11: euro
B12: IC_CR | C12: 210 | D12: euro
B13: IC_BT.cell | C13: 430 | D13: euro
B14: C_DSL | C14: 1.2 | D14: euro/L
B15: Life | C15: 25 | D15: year
B16: L_BT | C16: 8 | D16: year
B17: N_PV.cell | C17: 38
B18: N_BT.cell | C18: 24
B19: Hu | C19: 43.7 | D19: MJ/kg
B20: ρ_DSL | C20: 0.832 | D20: kg/L
B23: Output
B25: IC_inst | C25: =($C$9+$C$10)*$C$17+$C$13*$C$18+$C$12+$C$11 -> 30000 | D25: euro
B26: E_aux | C26: =(1-$C$7)*$C$6 -> 1737.75 | D26: kWh/year
B27: V_DSL | C27: =$C$26/($C$19*0.27778*$C$8*$C$20) -> 491.6018584 | D27: L/year
B28: OC_f | C28: =C14*$C$27 -> 589.9222301 | D28: euro
B29: MC | C29: =2*$C$13*$C$18 -> 20640 | D29: euro
B30: TC_sys | C30: =$C$28*$C$15+$C$25+$C$29 -> 65388.05575 | D30: euro
B31: V_DSL.2 | C31: =$C$6/($C$19*0.27778*$C$8*$C$20) -> 3277.345723 | D31: L/year
B32: TC_sys.2 | C32: =$C$14*$C$31*$C$15 -> 98320.37168 | D32: euro
